Cogmind - Beta 11 X7 @@@ ROGUE MODE // 2021.09.25 @ 11:52:49 Player: aoemica Result: Destroyed by KH-K7E(z) with Zionite Laser-S Performance ------------- Evolutions (3) 1500 Regions Visited (12) 2400 Robots Destroyed (161) 805 Value Destroyed (4386) 4386 Prototype IDs (47) 940 Alien Tech Used (0) 0 Bonus (153) 153 TOTAL SCORE: 10184 Bonus ------- Aligned with FarCom 300 Met Imprinter 300 Friendly Fire -447 Cogmind --------- Core Integrity 0/700 Matter 225/300 Energy 100/100 System Corruption 0% Temperature Cool (9) Movement Core (150) Ox2 Location -7/Deep Caves Parts ------- > --- POWER (2) -------- (None) > --- PROPULSION (4) --- (None) > --- UTILITY (4) ------ Hacking Drone Bay (1/1) > --- WEAPON (3) ------- Missile Launcher > --- INVENTORY (5) ---- Advanced Weapon Cycler Mobile Refinery Mk. CCLXVII Riot Gun CR-A16's Pointy Stick Peak State ------------ > --- POWER ------------ Heavy Ion Engine Enhanced Nuclear Core > --- PROPULSION ------- Light Treads Improved Treads Improved Treads Improved Treads > --- UTILITY ---------- Experimental Heat Sink High-capacity Storage Unit Advanced Weapon Cycler Zionite Light Carapace > --- WEAPON ----------- Enhanced Autogun Enhanced Autogun Enhanced Autogun > --- INVENTORY -------- Enhanced Nuclear Core High-capacity Matter Pod Hardened Medium Armor Plating Mobile Refinery Mk. CCLXVII Hacking Drone Bay Riot Gun Riot Gun Arc Thrower Enhanced Autogun KE Penetrator 8R-AWN's Boregun 8R-AWN's Boregun Gauss Cannon Missile Launcher Long-range Missile Launcher Plasma Cutter Enhanced Flamer CR-A16's Pointy Stick [Rating: 57] Favorites ----------- Power Heavy Ion Engine Engine Heavy Ion Engine Power Core Enhanced Nuclear Core Propulsion Light Treads Treads Light Treads Leg Carbon-fiber Leg Wheel Wheel Hover Unit Zionite Glidesys I Utility Experimental Targeting Computer Device Experimental Heat Sink Storage High-capacity Storage Unit Processor Experimental Targeting Computer Protection Hardened Medium Armor Plating Weapon Enhanced Autogun Energy Gun Medium Laser Ballistic Gun Enhanced Autogun Ballistic Cannon Gauss Cannon Launcher Missile Launcher Special Weapon Plasma Cutter Impact Weapon Powered Hammer Slashing Weapon Axe Piercing Weapon CR-A16's Pointy Stick Special Melee Weapon Datajack Build | -11 -10 -10 -9 -9 -9 -8 -8 -7 -7 -7 -7 -7 ------- Run | Scr Mat Min Mat Min Exi Min Mat Fac Low Low Zio Dee Slots Evolved 6 | . . . 2 . . . 2 2 . . . . Power 1 | . . . . . . . . 1 . . . . Propulsion 2 | . . . 1 . . . . 1 . . . . Utility 2 | . . . . . . . 2 . . . . . Weapon 1 | . . . 1 . . . . . . . . . Parts Attached 159 | . 11 1 30 . 10 10 25 5 5 4 39 19 Power 13 | . 2 . 3 . 1 1 2 2 . . 2 . Engine 8 | . 2 . 2 . . 1 1 1 . . 1 . Core 5 | . . . 1 . 1 . 1 1 . . 1 . Reactor . | . . . . . . . . . . . . . Propulsion 31 | . 4 . 9 . 2 4 7 1 1 1 . 2 Treads 27 | . 4 . 9 . 2 1 7 1 1 1 . 1 Leg 1 | . . . . . . 1 . . . . . . Wheel 2 | . . . . . . 2 . . . . . . Hover 1 | . . . . . . . . . . . . 1 Flight . | . . . . . . . . . . . . . Utility 41 | . 2 1 1 . 1 . 7 2 . . 19 8 Device 20 | . 1 1 . . . . 2 1 . . 12 3 Storage 8 | . 1 . . . . . 4 . . . 2 1 Processor 3 | . . . 1 . 1 . . 1 . . . . Hackware . | . . . . . . . . . . . . . Protection 10 | . . . . . . . 1 . . . 5 4 Artifact . | . . . . . . . . . . . . . Weapon 74 | . 3 . 17 . 6 5 9 . 4 3 18 9 Energy Gun . | . . . . . . . . . . . . . Energy Cannon . | . . . . . . . . . . . . . Ballistic Gun 50 | . 3 . 14 . 3 5 6 . 2 2 10 5 Ballistic Cannon 2 | . . . . . . . . . . 1 . 1 Launcher 9 | . . . . . . . . . 1 . 5 3 Special Weapon 5 | . . . 3 . 1 . . . 1 . . . Impact Weapon 1 | . . . . . . . 1 . . . . . Slashing Weapon 3 | . . . . . . . 2 . . . 1 . Piercing Weapon 2 | . . . . . . . . . . . 2 . Special Melee Weapon 2 | . . . . . 2 . . . . . . . Unidentified Prototypes 6 | . . . . . . . 1 1 . . 2 2 Parts Lost 35 | . 2 . . . 4 7 . . . 2 1 19 Power 3 | . 1 . . . . . . . . . . 2 Propulsion 14 | . 1 . . . 2 4 . . . 1 . 6 Utility 4 | . . . . . . . . . . . 1 3 Weapon 14 | . . . . . 2 3 . . . 1 . 8 Highest Loss Streak 19 | . 2 . . . 3 3 . . . 1 1 19 Average Slot Usage (%) 97 | . 94 100 99 100 99 99 97 100 100 100 95 85 Engine 8 | . 14 14 10 11 10 . 5 9 7 7 6 5 Core 4 | . . . . . . 10 3 5 7 7 6 5 Treads 28 | . 25 28 33 33 32 14 25 30 30 30 30 24 Device 6 | . 8 14 . . . . 5 7 7 7 7 12 Storage 9 | . 14 14 11 11 11 11 12 7 7 7 6 7 Processor 6 | . . . 10 11 11 11 9 7 7 7 5 . Protection 3 | . . . . . . . 6 7 7 7 6 5 Ballistic Gun 24 | . 17 28 32 33 28 33 26 23 22 22 16 19 Naked Turns 11 | . . . . . . . . . . . . 11 Heaviest Build 82 | 12 32 32 36 36 50 53 65 73 73 77 82 78 Greatest Support 86 | 20 40 40 60 60 60 60 68 83 86 86 86 66 Greatest Overweight (x) 5 | . . . . . . 5 3 . . . 1 2 Average Overweight (x) . | . . . . . . 3 . . . . . . Largest Inventory Capacity 20 | . 15 15 15 15 15 15 20 20 20 20 20 20 Average Capacity 17 | . 12 15 15 15 15 15 16 20 20 20 19 18 Most Carried 20 | . 15 15 15 15 15 15 20 20 20 20 20 20 Average Carried 16 | . 11 14 14 14 14 13 16 19 19 19 19 17 Final Capacity 20 | 8 15 15 15 15 15 15 20 20 20 20 20 5 Final Carried 20 | 6 15 15 15 15 15 15 20 20 20 19 20 4 Class Distribution -------------------- 46% | Scavenger-Gunner 17% | Mutant 17% | Scavenger-Mutant 12% | Gunner 3% | Tank Dominant Class ---------------- Mutant | -10/Materials Mutant | -10/Mines Gunner | -9/Materials Scavenger-Gunner | -9/Mines Scavenger-Gunner | -9/Exiles Scavenger-Gunner | -8/Mines Gunner | -8/Materials Scavenger-Gunner | -7/Factory Scavenger-Mutant | -7/Lower Caves Scavenger-Gunner | -7/Lower Caves Scavenger-Gunner | -7/Zion Scavenger-Tank | -7/Deep Caves Resources | -11 -10 -10 -9 -9 -9 -8 -8 -7 -7 -7 -7 -7 ----------- Run | Scr Mat Min Mat Min Exi Min Mat Fac Low Low Zio Dee Matter Collected 6187 | 200 438 82 974 15 320 559 596 131 161 354 2260 97 Remotely . | . . . . . . . . . . . . . Salvage Created 5988 | . 485 103 1580 76 120 590 1203 222 254 686 381 288 Parts 366 | . 28 1 106 4 10 26 77 8 14 28 47 17 Haulers Intercepted 10 | . 2 . 5 . . . 3 . . . . . Recyclers Shooed 6 | . . . 3 . . . 3 . . . . . Parts Field Recycled . | . . . . . . . . . . . . . Retrieved Matter . | . . . . . . . . . . . . . Parts Self-Destructed 40 | . . . . . . . . . 6 34 . . Prevented . | . . . . . . . . . . . . . Kills | -11 -10 -10 -9 -9 -9 -8 -8 -7 -7 -7 -7 -7 ------- Run | Scr Mat Min Mat Min Exi Min Mat Fac Low Low Zio Dee Combat Hostiles Destroyed 103 | . 10 4 22 2 1 13 14 4 5 14 7 7 Guns 91 | . 10 4 22 2 1 13 14 4 2 14 1 4 AOE 12 | . . . . . . . . . 3 . 6 3 Classes Destroyed 18 | . 5 1 3 . . 1 . . 2 2 3 1 Worker 8 | . 1 . 4 . . 2 1 . . . . . Builder 2 | . . . 1 . . . 1 . . . . . Hauler 10 | . 2 . 5 . . . 3 . . . . . Recycler 8 | . . . 3 . . . 5 . . . . . Watcher 12 | . 2 . 5 . . . 5 . . . . . Swarmer 21 | . 5 . 3 . . 3 6 . . 4 . . Grunt 42 | . 5 2 10 2 . 9 2 3 4 5 . . Brawler 2 | . . . . . . . . . . 2 . . Duelist 1 | . . . . . . . . . . 1 . . Sentry 17 | . . . 9 . . . 5 1 . 2 . . Hunter 2 | . . . . . . 1 1 . . . . . Programmer 1 | . . . . . . . . . 1 . . . Zionite 34 | . . . . . . . . . . . 34 . Z-Light 5 | . . . . . . . . . . . . 5 Tinkerer 4 | . . . . . . . . . . . 4 . Assembled 4 | . . 2 . . . . . . . . . 2 Surgeon 1 | . . . . . . . . . . . 1 . Butcher 1 | . . . . . . . . . . . 1 . Mutant 6 | . . . . . . . . . 1 . 5 . Best Kill Streak 12 | . 5 2 7 2 1 4 6 3 4 7 12 3 Combat Bots Only 7 | . 4 2 4 2 1 3 4 3 4 7 4 3 Max Kills in Single Turn 3 | . 2 1 2 1 1 2 2 1 2 1 3 3 Gunslinging 1 | . 1 . . . . . . . . . . . Exploded 3 | . . . . . . . . . 2 . 1 3 Melee . | . . . . . . . . . . . . . Uniques/NPCs Destroyed 2 | . . . . . 1 . . . . . 1 . 8R-AWN (-9/Exiles) Imprinter (-7/Zion) Combat | -11 -10 -10 -9 -9 -9 -8 -8 -7 -7 -7 -7 -7 -------- Run | Scr Mat Min Mat Min Exi Min Mat Fac Low Low Zio Dee Damage Taken 7508 | . 521 138 740 11 876 909 397 167 244 669 237 2599 Core 1122 | . 68 33 129 . 77 67 32 18 30 51 34 583 Absorbed by Shields . | . . . . . . . . . . . . . Core Remaining (%) 71 | 100 . 59 . . . 31 94 . . . . . Volleys Fired 404 | . 41 9 79 2 26 32 49 10 18 38 71 29 Largest 3 | . 2 2 3 3 3 3 3 3 3 3 3 3 Hottest 106 | . 70 46 69 69 69 76 75 75 75 75 79 106 Shots Fired 1016 | . 82 18 228 5 78 96 147 30 32 102 125 73 Gun 897 | . 82 18 225 5 74 96 147 30 21 96 36 67 Cannon 10 | . . . . . . . . . . 6 . 4 Launcher 94 | . . . . . . . . . 3 . 89 2 Special 15 | . . . 3 . 4 . . . 8 . . . Kinetic 869 | . 44 18 225 5 74 96 147 30 21 102 36 71 Thermal 53 | . 38 . 3 . 4 . . . 8 . . . Explosive 94 | . . . . . . . . . 3 . 89 2 Electromagnetic . | . . . . . . . . . . . . . Robot Hit Streak 36 | . 8 4 20 12 29 36 20 16 19 36 27 9 Robot Miss Streak 4 | . 4 3 3 . 2 2 3 3 3 1 3 3 Penetration Max . | . . . . . . . . . . . . . Secondary Targets 13 | . 1 1 4 . . 3 . . . 3 . 1 Max Gunslinging Chain 1 | . 1 1 1 . . 1 . . . 1 . 1 Shots Hit Robots 726 | . 51 14 165 5 74 76 105 23 24 78 69 42 Core Hits 322 | . 23 5 60 4 13 31 42 9 17 29 71 18 Critical Kills 3 | . . . 1 . . 1 . . . 1 . . Critical Parts Destroyed 1 | . . . 1 . . . . . . . . . Critical Strikes 8 | . 3 . 2 . . 1 . . 1 1 . . Burn 3 | . 3 . . . . . . . . . . . Destroy 4 | . . . 2 . . 1 . . . 1 . . Sever 1 | . . . . . . . . . 1 . . . Melee Attacks 9 | . . . . . 4 . 4 . . . 1 . Impact . | . . . . . . . . . . . . . Slashing 4 | . . . . . . . 4 . . . . . Piercing 1 | . . . . . . . . . . . 1 . Sneak Attacks 4 | . . . . . 4 . . . . . . . Combat Hostiles . | . . . . . . . . . . . . . Follow-up Attacks . | . . . . . . . . . . . . . Damage Inflicted 16110 | . 696 200 2524 71 1004 1130 1725 390 797 1346 5217 1010 Guns 10369 | . 665 191 2459 71 1000 1130 1657 390 307 1346 378 775 Cannons 30 | . . . . . . . . . . . . 30 Explosions 5417 | . . . . . . . . . 404 . 4808 205 Melee . | . . . . . . . . . . . . . Ramming 173 | . 31 9 34 . . . 68 . . . 31 . Kinetic 10101 | . 367 191 2459 71 1000 1130 1657 390 307 1346 378 805 Thermal 419 | . 298 . 31 . 4 . . . 86 . . . Explosive 5417 | . . . . . . . . . 404 . 4808 205 Electromagnetic . | . . . . . . . . . . . . . Impact . | . . . . . . . . . . . . . Slashing . | . . . . . . . . . . . . . Piercing . | . . . . . . . . . . . . . Highest Corruption 2 | . . . 2 2 2 2 1 . . . . . Average Corruption 1 | . . . 2 2 2 2 1 . . . . . Corruption Purged . | . . . . . . . . . . . . . Effects 33 | . . . 13 2 7 10 1 . . . . . Message Errors 12 | . . . 6 . 3 2 1 . . . . . Heat Flow Errors 9 | . . . 4 . 2 3 . . . . . . Energy Discharges 2 | . . . 1 . . 1 . . . . . . Data Loss (minor) 9 | . . . 2 1 2 4 . . . . . . Weapon Failures 1 | . . . . 1 . . . . . . . . Overload Shots . | . . . . . . . . . . . . . Overflow Damage 137 | . . . . . . . 3 . 6 . 126 2 Projectiles . | . . . . . . . . . . . . . Explosions 134 | . . . . . . . . . 6 . 126 2 Melee 3 | . . . . . . . 3 . . . . . Knockbacks 2 | . . . 1 . . . . . . . . 1 Impact 1 | . . . 1 . . . . . . . . . Kinetic 1 | . . . . . . . . . . . . 1 Secondary . | . . . . . . . . . . . . . Self-Inflicted Damage 121 | . . . . . . . . . 47 . 31 43 Shots 3 | . . . . . . . . . 2 . . 1 Rammed 31 | . 4 1 6 . . . 20 . . . . . Targets Rammed 48 | . 17 1 8 . . . 22 . . . . . Kicked 12 | . 12 . . . . . . . . . . . Crushed 5 | . 1 . 2 . . . 2 . . . . . Highest Temperature 268 | . 196 . 268 3 167 213 180 8 7 17 211 251 Average Temperature 57 | . 64 . 37 2 24 83 35 8 7 8 50 134 Received Heat Transfer 2298 | . 237 48 366 6 . 387 153 72 81 147 18 783 Effects 7 | . . . . . . . . . . . 3 4 Interference 7 | . . . . . . . . . . . 3 4 Siege Activations . | . . . . . . . . . . . . . Robots Corrupted . | . . . . . . . . . . . . . Combat Hostiles . | . . . . . . . . . . . . . Parts Fried . | . . . . . . . . . . . . . Impact Corruptions 2 | . . . . . . . 2 . . . . . Robots Melted . | . . . . . . . . . . . . . Combat Hostiles . | . . . . . . . . . . . . . Parts Melted 2 | . 2 . . . . . . . . . . . Heat Transferred 1553 | . 1110 . 111 . 36 . . . 296 . . . Parts Sabotaged . | . . . . . . . . . . . . . Parts Stolen . | . . . . . . . . . . . . . Parts Stripped . | . . . . . . . . . . . . . Power Chain Reactions . | . . . . . . . . . . . . . Missiles Intercepted . | . . . . . . . . . . . . . Alert | -11 -10 -10 -9 -9 -9 -8 -8 -7 -7 -7 -7 -7 ------- Run | Scr Mat Min Mat Min Exi Min Mat Fac Low Low Zio Dee Peak Influence 416 | . 222 50 356 186 . 156 416 173 . . . . Initial 136 | . . 5 . 136 . . . 88 . . . . Average 122 | . 94 14 200 158 . 57 198 78 . . . . Maximum Alert Level 2 | . 1 . 1 . . . 2 . . . . . Low Security (%) 77 | . 87 100 49 100 . 100 55 100 . . . . Level 1 22 | . 12 . 50 . . . 43 . . . . . Level 2 . | . . . . . . . 1 . . . . . Level 3 . | . . . . . . . . . . . . . Level 4 . | . . . . . . . . . . . . . Level 5 . | . . . . . . . . . . . . . High Security . | . . . . . . . . . . . . . Max Security . | . . . . . . . . . . . . . Squads Dispatched 7 | . 2 1 . . . . 2 1 . 1 . . Investigation 4 | . 2 1 . . . . 1 . . . . . Extermination . | . . . . . . . . . . . . . Reinforcement 1 | . . . . . . . . 1 . . . . Assault 1 | . . . . . . . . . . 1 . . Garrison 1 | . . . . . . . 1 . . . . . Intercept . | . . . . . . . . . . . . . Construction Impeded . | . . . . . . . . . . . . . Haulers Reinforced . | . . . . . . . . . . . . . Active Scanning Responses . | . . . . . . . . . . . . . Cargo Convoy Interrupts . | . . . . . . . . . . . . . Stealth | -11 -10 -10 -9 -9 -9 -8 -8 -7 -7 -7 -7 -7 --------- Run | Scr Mat Min Mat Min Exi Min Mat Fac Low Low Zio Dee Distress Signals 3 | . . . 2 . . . 1 . . . . . Communications Jammed . | . . . . . . . . . . . . . Distress Signals . | . . . . . . . . . . . . . Times Spotted 176 | . 22 9 29 2 1 13 28 6 5 15 37 9 Peak Tracking Total 8 | . 6 8 5 2 2 3 4 3 5 7 8 5 Tactical Retreats 16 | . 2 . 1 . . . 3 . . 4 6 . Traps | -11 -10 -10 -9 -9 -9 -8 -8 -7 -7 -7 -7 -7 ------- Run | Scr Mat Min Mat Min Exi Min Mat Fac Low Low Zio Dee Traps Triggered 4 | . 2 . 1 . . . 1 . . . . . Indirectly . | . . . . . . . . . . . . . Trap Hack Attempts . | . . . . . . . . . . . . . Triggered . | . . . . . . . . . . . . . Disarmed . | . . . . . . . . . . . . . Reprogrammed . | . . . . . . . . . . . . . Reused . | . . . . . . . . . . . . . Traps Extracted . | . . . . . . . . . . . . . Installed . | . . . . . . . . . . . . . Triggered 1 | . . . . . . . . . . 1 . . Exploded 1 | . . . . . 1 . . . . . . . Machines | -11 -10 -10 -9 -9 -9 -8 -8 -7 -7 -7 -7 -7 ---------- Run | Scr Mat Min Mat Min Exi Min Mat Fac Low Low Zio Dee Machines Disabled 5 | . . . . . . 1 . . . . 4 . Max in Single Turn 2 | . . . . . . 1 . . . . 2 . Garrison Access 1 | . . . . . . . . 1 . . . . Machines Sabotaged . | . . . . . . . . . . . . . Garrisons Compromised . | . . . . . . . . . . . . . Overloaded Fab Kills . | . . . . . . . . . . . . . Fab Network Shutdowns . | . . . . . . . . . . . . . Hacking | -11 -10 -10 -9 -9 -9 -8 -8 -7 -7 -7 -7 -7 --------- Run | Scr Mat Min Mat Min Exi Min Mat Fac Low Low Zio Dee Machines Accessed 28 | . 9 1 7 . 2 . 6 2 . 1 . . Terminals 16 | . 6 . 6 . . . 3 1 . . . . Fabricators . | . . . . . . . . . . . . . Repair Stations 4 | . 1 . 1 . . . 2 . . . . . Recycling Units 3 | . 2 . . . . . 1 . . . . . Scanalyzers . | . . . . . . . . . . . . . Garrison Access 1 | . . . . . . . . 1 . . . . Total Hacks 65 | . 30 1 15 . 2 . 13 3 . 1 . . Successful 30 | . 10 1 8 . 2 . 6 2 . 1 . . Failed 33 | . 19 . 6 . . . 7 1 . . . . Catastrophic 1 | . . . . . . . 1 . . . . . Database Lockouts 2 | . 1 . 1 . . . . . . . . . Manual 36 | . 18 . 8 . 1 . 4 1 . . 4 . Terminals 46 | . 24 . 12 . . . 8 2 . . . . Fabricators . | . . . . . . . . . . . . . Repair Stations 9 | . 2 . 3 . . . 4 . . . . . Recycling Units 5 | . 4 . . . . . 1 . . . . . Scanalyzers . | . . . . . . . . . . . . . Garrison Access 1 | . . . . . . . . 1 . . . . Terminal Hacks 14 | . 4 1 4 . 2 . 2 . . 1 . . Record 1 | . . . . . 1 . . . . . . . Part Schematic 1 | . 1 . . . . . . . . . . . Robot Analysis 1 | . . . 1 . . . . . . . . . Prototype ID Bank 2 | . 2 . . . . . . . . . . . Open Door 2 | . . 1 . . . . . . . 1 . . Branch Access Points 1 | . . . 1 . . . . . . . . . Locate Traps 2 | . 1 . 1 . . . . . . . . . Zone Layout 3 | . . . 1 . . . 2 . . . . . EX-Prototype ID Bank 1 | . . . . . 1 . . . . . . . Fabricator Hacks . | . . . . . . . . . . . . . Repair Station Hacks 7 | . 2 . 2 . . . 3 . . . . . Scan Component 4 | . 1 . 1 . . . 2 . . . . . Repair 3 | . 1 . 1 . . . 1 . . . . . Recycling Unit Hacks . | . . . . . . . . . . . . . Scanalyzer . | . . . . . . . . . . . . . Garrison Access Hacks 1 | . . . . . . . . 1 . . . . Seal Access 1 | . . . . . . . . 1 . . . . Unauthorized Hacks 8 | . 4 . 2 . . . 1 1 . . . . Terminals 6 | . 3 . 2 . . . . 1 . . . . Track 1 | . . . 1 . . . . . . . . . Botnet 4 | . 2 . 1 . . . . 1 . . . . Operators 1 | . 1 . . . . . . . . . . . Fabricators . | . . . . . . . . . . . . . Repair Stations . | . . . . . . . . . . . . . Recycling Units 2 | . 1 . . . . . 1 . . . . . Tunnel 2 | . 1 . . . . . 1 . . . . . Scanalyzers . | . . . . . . . . . . . . . Garrison Access . | . . . . . . . . . . . . . Data Cores Recovered . | . . . . . . . . . . . . . Used . | . . . . . . . . . . . . . Hacking Detections 19 | . 8 . 6 . . . 4 1 . . . . Full Trace Events . | . . . . . . . . . . . . . Feedback Events . | . . . . . . . . . . . . . Feedback Blocked . | . . . . . . . . . . . . . Robot Schematics Acquired . | . . . . . . . . . . . . . Robots Built . | . . . . . . . . . . . . . Matter . | . . . . . . . . . . . . . Time . | . . . . . . . . . . . . . Total Robot Build Rating . | . . . . . . . . . . . . . Part Schematics Acquired 1 | . 1 . . . . . . . . . . . Parts Built . | . . . . . . . . . . . . . Matter . | . . . . . . . . . . . . . Time . | . . . . . . . . . . . . . Total Part Build Rating . | . . . . . . . . . . . . . Parts Repaired 3 | . 1 . 1 . . . 1 . . . . . Time 109 | . 26 . 51 . . . 32 . . . . . Parts Recycled . | . . . . . . . . . . . . . Recycled Matter . | . . . . . . . . . . . . . Retrieved Matter . | . . . . . . . . . . . . . Retrieved Components . | . . . . . . . . . . . . . Parts Scanalyzed . | . . . . . . . . . . . . . Part Schematics Acquired . | . . . . . . . . . . . . . Parts Damaged . | . . . . . . . . . . . . . Bothacking | -11 -10 -10 -9 -9 -9 -8 -8 -7 -7 -7 -7 -7 ------------ Run | Scr Mat Min Mat Min Exi Min Mat Fac Low Low Zio Dee Used RIF Installer . | . . . . . . . . . . . . . Robots Hacked 4 | . . . . . 4 . . . . . . . Non-combat 3 | . . . . . 3 . . . . . . . Combat 1 | . . . . . 1 . . . . . . . Robot Hacks Applied 4 | . . . . . 4 . . . . . . . parse_system 4 | . . . . . 4 . . . . . . . Relay Couplers Released . | . . . . . . . . . . . . . Robots Rewired . | . . . . . . . . . . . . . Allies Hacked . | . . . . . . . . . . . . . Hacks Repelled . | . . . . . . . . . . . . . Allies | -11 -10 -10 -9 -9 -9 -8 -8 -7 -7 -7 -7 -7 -------- Run | Scr Mat Min Mat Min Exi Min Mat Fac Low Low Zio Dee Total Allies . | . . . . . . . . . . . . . Largest Group . | . . . . . . . . . . . . . Highest-Rated Group . | . . . . . . . . . . . . . Highest-Rated Ally . | . . . . . . . . . . . . . Total Orders . | . . . . . . . . . . . . . Ally Attacks . | . . . . . . . . . . . . . Total Damage . | . . . . . . . . . . . . . Kills . | . . . . . . . . . . . . . Allies Corrupted . | . . . . . . . . . . . . . Allies Melted . | . . . . . . . . . . . . . Intel | -11 -10 -10 -9 -9 -9 -8 -8 -7 -7 -7 -7 -7 ------- Run | Scr Mat Min Mat Min Exi Min Mat Fac Low Low Zio Dee Robot Analysis Total 1 | . . . 1 . . . . . . . . . Derelict Logs Recovered 8 | . . . . 2 . . . . 2 2 2 . Drone Launches . | . . . . . . . . . . . . . Drone Recoveries . | . . . . . . . . . . . . . Exploration | -11 -10 -10 -9 -9 -9 -8 -8 -7 -7 -7 -7 -7 ------------- Run | Scr Mat Min Mat Min Exi Min Mat Fac Low Low Zio Dee Turns Passed 17417 | . 1625 1233 2248 261 636 1240 1420 655 1633 2535 3468 463 Spaces Moved 8989 | 1 882 682 1038 152 300 736 625 380 987 1312 1707 187 Core 253 | . . . . . . . . . . . 218 35 Treads 7938 | . 795 682 1038 152 300 98 574 380 987 1312 1489 131 Legs 88 | 1 87 . . . . . . . . . . . Wheels 689 | . . . . . . 638 51 . . . . . Hover 21 | . . . . . . . . . . . . 21 Flight . | . . . . . . . . . . . . . Fastest Speed 50 | 120 120 160 160 160 160 125 125 160 160 160 50 50 Average Speed 162 | 120 156 160 160 160 160 144 174 160 160 160 170 202 Slowest Speed 360 | 120 160 160 160 160 160 360 260 160 160 160 260 260 Overloaded Moves . | . . . . . . . . . . . . . Propulsion Burnouts . | . . . . . . . . . . . . . Robots Hopped . | . . . . . . . . . . . . . Cave-ins Triggered . | . . . . . . . . . . . . . Exploration Rate (%) 64 | 1 94 99 79 39 65 97 41 9 97 95 91 30 Regions Visited 12 Branch Regions 8 Pre-discovered Areas 6 | . 1 . . 1 1 . 1 . . 1 1 . Known Exits Taken 2 | . . . 1 . . . . 1 . . . . Unknown Exits Taken 10 | 1 1 1 . 1 1 1 1 . 1 1 1 . Scrap Searched 13 | . . 1 . 2 . 3 . . 2 1 4 . Spaces Dug 24 | . . . . . . . 4 . 20 . . . Terrain Destroyed 179 | . . . . . . 2 4 . 28 3 136 6 Melee 4 | . . . . . . . 4 . . . . . Projectile 5 | . . . . . . 2 . . . 3 . . AOE 170 | . . . . . . . . . 28 . 136 6 Terrain Rammed 1 | . . . . . . . . . . . 1 . Walls Destroyed . | . . . . . . . . . . . . . Machines Disabled . | . . . . . . . . . . . . . Actions | -11 -10 -10 -9 -9 -9 -8 -8 -7 -7 -7 -7 -7 --------- Run | Scr Mat Min Mat Min Exi Min Mat Fac Low Low Zio Dee Total 11180 | . 1049 810 1459 166 393 842 872 417 1013 1708 2202 249 Wait 1310 | . 63 103 256 9 41 57 93 15 . 350 319 4 Move 8977 | . 881 681 1037 151 299 735 624 379 986 1311 1706 187 Hop . | . . . . . . . . . . . . . Pick Up 120 | . 21 7 15 2 8 5 24 5 1 3 29 . Fast Attach 43 | . 4 . 5 . 1 5 13 1 1 . 7 6 Attach 36 | . 4 . 2 . 4 4 2 2 . 2 6 10 Detach 7 | . 1 . 1 . . . . . . . 2 3 Swap 80 | . 3 1 23 . 5 1 10 2 4 2 26 3 Drop 142 | . 14 8 33 2 5 3 29 3 2 2 34 7 Fire 404 | . 41 9 79 2 26 32 49 10 18 38 71 29 Melee 9 | . . . . . 4 . 4 . . . 1 . Ram 1 | . . . . . . . . . . . 1 . Kick 12 | . 12 . . . . . . . . . . . Crush 36 | . 5 1 8 . . . 22 . . . . . Escape Stasis . | . . . . . . . . . . . . . Rewire 3 | . . . . . . . 2 . 1 . . . Trap . | . . . . . . . . . . . . . Miscellaneous . | . . . . . . . . . . . . . Route ------- -11/Scrapyard -10/Materials (discovered 4 exits: *Mat x3 / *Min) -10/Mines (discovered 2 exits: *Mat x2) -9/Materials (discovered 5 exits: *Mat x2 / *Min / *Sto x2) -9/Mines (discovered 2 exits: *Exi / *Zio) -9/Exiles -8/Mines (discovered 2 exits: *Mat x2) -8/Materials -7/Factory (discovered 2 exits: [*Fac] / *Low) -7/Lower Caves -7/Lower Caves (discovered 2 exits: [*Fac] / *Zio) -7/Zion (discovered 2 exits: [*Dee] / [*Pro]) -7/Deep Caves History --------- Turn | Location | Event 1 | -11/Scrapyard | Discovered new exit (range 0) 1 | -11/Scrapyard | Entered Materials 283 | -10/Materials | Discovered new exit (range 10) 312 | -10/Materials | Build established: Mutant 354 | -10/Materials | Discovered new exit (range 16) 730 | -10/Materials | Repaired Assault Rifle 1059 | -10/Materials | Central database locked down 1131 | -10/Materials | Discovered new exit (range 16) 1383 | -10/Materials | Discovered new exit (range 8) 1626 | -10/Materials | Entered Mines 1640 | -10/Mines | Met a Derelict shopkeep closing up shop 1786 | -10/Mines | Received a Rocket Launcher from a helpful Derelict 1811 | -10/Mines | Discovered new exit (range 9) 1955 | -10/Mines | Assembled infested the area 1960 | -10/Mines | Assisted by a Guerilla fighting off Assembled 2486 | -10/Mines | Discovered new exit (range 6) 2677 | -10/Mines | A weapon hastily lodged in a ceiling crevice suddenly fell to the ground 2859 | -10/Mines | Entered Materials 2859 | -9/Materials | Evolved 2 slots: Propulsion x1, Weapon x1 3008 | -9/Materials | Discovered new exit (range 15) 3155 | -9/Materials | Build established: Gunner 3445 | -9/Materials | Identified exit to Mines 3445 | -9/Materials | Identified exit to Storage 3791 | -9/Materials | Discovered new exit (range 8) 4262 | -9/Materials | Discovered new exit (range 15) 4613 | -9/Materials | Build established: Scavenger-Gunner 4773 | -9/Materials | Repaired Imp. Assault Rifle 5020 | -9/Materials | Central database locked down 5107 | -9/Materials | Entered Mines 5136 | -9/Mines | Found a hidden stash of uninstalled traps 5181 | -9/Mines | Learned Materials garrison access intel 5206 | -9/Mines | A Derelict revealed a hidden shortcut to a safe place 5361 | -9/Mines | Deemed a non-threat by the Exiles lab entrance 5361 | -9/Mines | Discovered new exit (range 5) 5368 | -9/Mines | Entered Exiles 5408 | -9/Exiles | Met 8R-AWN 5446 | -9/Exiles | Met EX-HEX 5512 | -9/Exiles | Met EX-DEC 5518 | -9/Exiles | Learned location of Zion (-7) 5586 | -9/Exiles | Met EX-BIN 5610 | -9/Exiles | Aligned with FarCom system 5612 | -9/Exiles | Given EX-Vault access code 5650 | -9/Exiles | Opened EX-Vault 5690 | -9/Exiles | Warned to stay clear of 0b10 Research branches 5716 | -9/Exiles | Exiles lab attacked by MAIN.C 5824 | -9/Exiles | Discovered new exit (range 11) 5882 | -9/Exiles | Attacked by the Exiles 5944 | -9/Exiles | Lost 3 parts (1n2w) 5950 | -9/Exiles | Core integrity fell below 50% 5966 | -9/Exiles | Destroyed 8R-AWN 5974 | -9/Exiles | Found 8R-AWN's Boregun 5977 | -9/Exiles | Found 8R-AWN's Boregun 5982 | -9/Exiles | Found Exp. Targeting Computer 5995 | -9/Exiles | Found 8R-AWN's Armor/EX 6004 | -9/Exiles | Entered Mines 6304 | -8/Mines | Lost 3 parts (1n2w) 6636 | -8/Mines | Discovered new exit (range 7) 6752 | -8/Mines | Discovered new exit (range 11) 7244 | -8/Mines | Entered Materials 7244 | -8/Materials | Evolved 2 slots: Utility x2 7245 | -8/Materials | Loaded intel: 1 garrison access location 7632 | -8/Materials | Build established: Gunner 7919 | -8/Materials | Repaired Imp. Treads 7953 | -8/Materials | Garrison activated, responded to threat 8194 | -8/Materials | Discovered new exit (range 15) 8485 | -8/Materials | Build established: Scavenger-Gunner 8664 | -8/Materials | Entered Factory 8664 | -7/Factory | Evolved 2 slots: Power x1, Propulsion x1 8994 | -7/Factory | Discovered new exit (range 12) 9024 | -7/Factory | Identified exit to Lower Caves 9259 | -7/Factory | Discovered new exit (range 4) 9319 | -7/Factory | Entered Lower Caves 9533 | -7/Lower Caves | Encountered a Warlord checkpoint 9933 | -7/Lower Caves | Build established: Scavenger-Mutant 10334 | -7/Lower Caves | Learned Factory terminal intel 10374 | -7/Lower Caves | Discovered new exit (range 10) 10584 | -7/Lower Caves | Learned Factory terminal intel 10952 | -7/Lower Caves | Entered another Lower Caves area 11131 | -7/Lower Caves | Attracted the attention of an 0b10 checkpoint 11244 | -7/Lower Caves | Build established: Scavenger-Gunner 11326 | -7/Lower Caves | Spotted B-75 Beast 11404 | -7/Lower Caves | Encountered a Warlord checkpoint 11950 | -7/Lower Caves | Discovered new exit (range 5) 12568 | -7/Lower Caves | Build established: Scavenger-Mutant 13062 | -7/Lower Caves | Build established: Scavenger-Gunner 13379 | -7/Lower Caves | Attracted the attention of an 0b10 outpost 13445 | -7/Lower Caves | Destroyed 7 combat bots 13458 | -7/Lower Caves | Discovered new exit (range 9) 13487 | -7/Lower Caves | Entered Zion 13559 | -7/Zion | Found Prototype Device 13560 | -7/Zion | Identified Mobile Refinery Mk. CCLXVII 13610 | -7/Zion | Discovered new exit (range 11) 13855 | -7/Zion | Learned Factory terminal intel 13932 | -7/Zion | Learned 8 Factory zone layouts 14475 | -7/Zion | Learned location of Warlord (-4) 14787 | -7/Zion | Given the Hacking Drone Bay 14788 | -7/Zion | Found Prototype Device 14789 | -7/Zion | Identified Hacking Drone Bay 15370 | -7/Zion | Found CR-A16's Pointy Stick 15787 | -7/Zion | Attacked by Zionites 15875 | -7/Zion | Build established: Scavenger-Mutant 16655 | -7/Zion | Build established: Tank 16661 | -7/Zion | Destroyed Imprinter 16709 | -7/Zion | Extracted access codes from Imprinter's data core 16809 | -7/Zion | Opened final containment barrier to the Deep Caves 16858 | -7/Zion | Discovered new exit (range 3) 16858 | -7/Zion | Saw the warning signs outside the Deep Caves entrance 16955 | -7/Zion | Entered Deep Caves 17188 | -7/Deep Caves | Build established: Scavenger-Tank 17312 | -7/Deep Caves | Z-Facility disabled 17352 | -7/Deep Caves | Core integrity fell below 50% 17369 | -7/Deep Caves | Core integrity fell below 20% 17418 | -7/Deep Caves | Destroyed by KH-K7E(z) with Zionite Laser-S Last Messages --------------- 17357_ 8R-AWN's Boregun temporarily disabled. 17357_ Gauss Cannon destroyed. 17361_ KE Penetrator destroyed. 17361_ HV Slug penetrates VY-QAB(z). 17365_ HV Slug penetrates Q1-LKT(z). 17367_ 8R-AWN's Boregun destroyed. 17368_ VY-QAB(z) destroyed. 17368_ Destroyed Imp. Maneuvering Thrusters. 17368_ Q1-LKT(z) destroyed. 17368_ LK-E9M(z) destroyed. 17371_ Dropped Hcp. Storage Unit. 17377_ Acquired Prototype Hover Unit. 17377_ Identified Zio. Glidesys I. 17378_ Acquired 19 matter. 17382_ The unstable cave ceiling collapses. 17382_ Plasma Cutter crushed. 17391_ Zio. Glidesys I destroyed. 17391_ Dropped Hcp. Matter Pod. 17400_ Acquired 39 matter. 17402_ Acquired Missile Launcher. Map ----- +----------------------------------------------------+ | | | | | | | | | | | | | | | | | | | | | | | | | | | | | | | | | | | | | | | | | | | | | | | ###########???####?????###???????????????????????? | | *![[=!=!=!#???#! #????##;############????????????? | | #??##!*#?#### @ ##???????????? | | ## ######??# *### #????###????? | | ##??########## *##; ###### ##???? | | ###### ##][| ## # #???# | | # !# ![ ##### | | !%!z!! | | * !!* | | !% ! | | ! | | """" """""" | | """""""""""""" | | """""""""""""" | | """""""""""""" | | """"""""""" | | """???????"""" | | """???????"""" | | """?????????"" | | ""??????????"" | | ""??????????" | | "????????? | | "????????? | | "?????????? | | ???????? ?????????????? | | ?????????? ?????????????????? | | ???????????????????????????????????? | +----------------------------------------------------+ Best States ------------- Heat Dissipation 60 Energy Generation 26 Energy Capacity 480 Matter Stores 500 Matter Capacity 500 Sight Range 16 Terrain Scan Density 10 Cloak Strength 3 Armor Coverage 400 Weapon Cycling 25 Evasion (%) 55 Targeting Accuracy 12 Recoil Reduction 4 Item Schematics ----------------- Hcp. Storage Unit | -10/Materials | Hacked Robot Schematics ------------------ None Fabricated ------------ Nothing Alien Tech Used ----------------- None Achievements -------------- None Challenges ------------ None Game ------ Seed AccelerationBoreTriangulator Manual? 0 Play Time 01:22:00 Cumulative 491.9 hours Start 2021.09.25 @ 10:00:47 End 2021.09.25 @ 11:52:49 Sessions 1 Manual Loads 0 Difficulty Rogue Special Mode None Game No. 195 Rogue 194 Adventurer 1 Explorer 0 Win Type - Total 37 Types 10/5/6/1/1/0/13/1/0 Lore% 94 Gallery% 96 Achievement% 82 Wizard Run 0 Options --------- ASCII 1 Keyboard 1 Movement Numpad Keybinds 0 Fullscreen 0 Font 18/Smallcaps Map View 76x50 Tactical HUD 1 Map Filters NONE Filters NONE Steam 1 RUN: 46d71bb1-da02-41d0-829f-318a9a285236